fUSD/lending_fUSD_20240614
["ID","MTS","AMOUNT","RATE_DAILY","PERIOD"]
[329498132,1718397047769,-506.77799707,0.00021917,2]
[329498133,1718397047782,-510.94491433,0.00021917,2]
[329498134,1718397047793,-509.99022776,0.00021917,2]
[329498135,1718397047811,-523.17,0.00021917,2]
[329498136,1718397047844,-509.22532295,0.00021917,2]
[329498137,1718397047867,-510.499661,0.00021917,2]
[329498138,1718397047880,-580.62,0.00021917,2]
[329498139,1718397047906,-510.70844885,0.00021917,2]
[329498140,1718397047919,-502.1576414,0.00021917,2]
[329498141,1718397047930,-500.0,0.00021917,2]
[329498142,1718397047941,-526.41,0.00021917,2]
[329498143,1718397047976,-200.16639529,0.00021917,2]
[329498144,1718397048096,-304.99153919,0.00021917,2]
[329498145,1718397048107,-94.85771423,0.00021917,2]
[329498146,1718397048134,-411.00027847,0.00021917,2]
[329498149,1718397048164,-500.0,0.00021917,2]
[329498153,1718397048188,-500.0,0.00021917,2]
[329498156,1718397048203,-511.65857684,0.00021917,2]
[329498158,1718397048214,-202.33398857,0.00021917,2]
[329498161,1718397048239,-327.90405787,0.00021917,2]
[329498163,1718397048253,-506.56373691,0.00021917,2]
[329498165,1718397048264,-500.0,0.00021917,2]
[329498167,1718397048278,-503.7072081,0.00021917,2]
[329498168,1718397048292,-337.2858637,0.00021917,2]
[329498170,1718397048319,-500.0,0.00021917,2]
[329498172,1718397048330,-500.0,0.00021917,2]
[329498174,1718397048364,-500.0,0.00021917,2]
[329498176,1718397048383,-500.0,0.00021917,2]
[329498178,1718397048400,-340.98764324,0.00021917,2]
[329498180,1718397048424,-500.0,0.00021917,2]
[329498182,1718397048443,-500.0,0.00021917,2]
[329498184,1718397048455,-500.0,0.00021917,2]
[329498186,1718397048466,-500.0,0.00021917,2]
[329498187,1718397048497,-502.10240917,0.00021917,2]
[329498191,1718397048537,-500.0,0.00021917,2]
[329498193,1718397048549,-505.26643926,0.00021917,2]
[329498194,1718397048562,-500.0,0.00021917,2]
[329498195,1718397048573,-500.0,0.00021917,2]
[329498196,1718397048588,-514.9293681,0.00021917,2]
[329498197,1718397048601,-509.89822758,0.00021917,2]
[329498198,1718397048614,-502.29881005,0.00021917,2]
[329498199,1718397048628,-182.473804,0.00021917,2]
[329498200,1718397048669,-505.16289152,0.00021917,2]
[329498201,1718397048699,-505.78782458,0.00021917,2]
[329498202,1718397048726,-508.5742405,0.00021917,2]
[329498203,1718397048737,-508.86288266,0.00021917,2]
[329498205,1718397048768,-500.0,0.00021917,2]
[329498208,1718397048793,-509.15695377,0.00021917,2]
[329498209,1718397048822,-500.0,0.00021917,2]
[329498213,1718397048852,-500.0,0.00021917,2]
[329498217,1718397048869,-500.0,0.00021917,2]
[329498220,1718397048890,-503.93310602,0.00021917,2]
[329498225,1718397048900,-506.42687825,0.00021917,2]
[329498228,1718397048915,-506.42388206,0.00021917,2]
[329498231,1718397048944,-504.9012013,0.00021917,2]
[329498233,1718397048958,-500.0,0.00021917,2]
[329498234,1718397048970,-516.92206444,0.00021917,2]
[329498236,1718397048980,-500.0,0.00021917,2]
[329498239,1718397048992,-500.0,0.00021917,2]
[329498242,1718397049005,-510.05345804,0.00021917,2]
[329498244,1718397049016,-500.0,0.00021917,2]
[329498246,1718397049029,-500.0,0.00021917,2]
[329498249,1718397049064,-500.0,0.00021917,2]
[329498250,1718397049084,-507.12421363,0.00021917,2]
[329498251,1718397049101,-500.0,0.00021917,2]
[329498252,1718397049112,-500.0,0.00021917,2]
[329498253,1718397049128,-502.00734431,0.00021917,2]
[329498254,1718397049140,-500.0,0.00021917,2]
[329498255,1718397049172,-503.03733623,0.00021917,2]
[329498256,1718397049207,-504.03939517,0.00021917,2]
[329498257,1718397049248,-503.42086288,0.00021917,2]
[329498258,1718397049276,-500.0,0.00021917,2]
[329498259,1718397049301,-504.34049154,0.00021917,2]
[329498260,1718397049317,-505.95099038,0.00021917,2]
[329498261,1718397049335,-500.0,0.00021917,2]
[329498262,1718397049350,-500.0,0.00021917,2]
[329498263,1718397049375,-507.83765858,0.00021917,2]
[329498264,1718397049388,-502.96009242,0.00021917,2]
[329498265,1718397049408,-506.22633461,0.00021917,2]
[329498266,1718397049419,-616.53,0.00021917,2]
[329498267,1718397049440,-506.54302162,0.00021917,2]
[329498268,1718397049480,-345.36646253,0.00021917,2]
[329498269,1718397049548,-154.63353747,0.00021917,2]
[329498270,1718397049568,-500.0,0.00021917,2]
[329498271,1718397049578,-503.08193134,0.00021917,2]
[329498272,1718397049596,-504.00157036,0.00021917,2]
[329498273,1718397049621,-562.72,0.00021917,2]
[329498274,1718397049634,-502.16799783,0.00021917,2]
[329498275,1718397049645,-502.93555002,0.00021917,2]
[329498276,1718397049667,-643.67,0.00021917,2]
[329498277,1718397049709,-374.23631749,0.00021917,2]
[329498278,1718397049720,-500.0,0.00021917,2]
[329498279,1718397049735,-500.0,0.00021917,2]
[329498280,1718397049751,-503.7623327,0.00021917,2]
[329498281,1718397049778,-500.0,0.00021917,2]
[329498282,1718397049821,-449.47376049,0.00021917,2]
[329498283,1718397049854,-500.0,0.00021917,2]
[329498284,1718397049888,-506.23433438,0.00021917,2]
[329498285,1718397049947,-500.0,0.00021917,2]
[329498286,1718397050068,-508.10117471,0.00021917,2]
[329498287,1718397050112,-505.44305051,0.00021917,2]
[329498288,1718397050136,-500.0,0.00021917,2]
[329498289,1718397050156,-500.0,0.00021917,2]
[329498290,1718397050168,-504.63466486,0.00021917,2]
[329498291,1718397050189,-500.0,0.00021917,2]
[329498292,1718397050220,-510.19242826,0.00021917,2]
[329498293,1718397050251,-500.0,0.00021917,2]
[329498294,1718397050265,-500.0,0.00021917,2]
[329498295,1718397050289,-501.32989208,0.00021917,2]
[329498296,1718397050328,-500.0,0.00021917,2]
[329498297,1718397050360,-512.18078274,0.00021917,2]
[329498298,1718397050374,-572.41,0.00021917,2]
[329498300,1718397050389,-542.56,0.00021917,2]
[329498303,1718397050444,-500.0,0.00021917,2]
[329498305,1718397050456,-983.03,0.00021917,2]
[329498306,1718397050468,-500.0,0.00021917,2]
[329498308,1718397050489,-500.0,0.00021917,2]
[329498309,1718397050529,-513.68100353,0.00021917,2]
[329498310,1718397050577,-500.0,0.00021917,2]
[329498311,1718397050593,-500.0,0.00021917,2]
[329498312,1718397050606,-500.0,0.00021917,2]
[329498313,1718397050658,-503.37858141,0.00021917,2]
[329498314,1718397050879,-500.0,0.00021917,2]
[329498315,1718397050904,-500.0,0.00021917,2]
[329498316,1718397050916,-500.0,0.00021917,2]
[329498317,1718397050930,-500.0,0.00021917,2]
[329498318,1718397050944,-500.0,0.00021917,2]
[329498319,1718397050968,-500.0,0.00021917,2]
[329498320,1718397050979,-500.0,0.00021917,2]
[329498321,1718397051004,-500.0,0.00021917,2]
[329498322,1718397051016,-507.33348042,0.00021917,2]
[329498323,1718397051044,-600.52,0.00021917,2]
[329498324,1718397051056,-185.4733061,0.00021917,2]
[329498325,1718397051073,-609.47,0.00021917,2]
[329498326,1718397051085,-500.0,0.00021917,2]
[329498327,1718397051096,-514.125426,0.00021917,2]
[329498328,1718397051123,-500.0,0.00021917,2]
[329498329,1718397051140,-500.0,0.00021917,2]
[329498330,1718397051162,-518.33771294,0.00021917,2]
[329498331,1718397051178,-500.0,0.00021917,2]
[329498332,1718397051189,-500.0,0.00021917,2]
[329498333,1718397051202,-511.3215188,0.00021917,2]
[329498334,1718397051214,-527.87,0.00021917,2]
[329498335,1718397051230,-500.0,0.00021917,2]
[329498336,1718397051262,-500.0,0.00021917,2]
[329498337,1718397051297,-500.0,0.00021917,2]
[329498338,1718397051309,-500.0,0.00021917,2]
[329498339,1718397051321,-569.06991039,0.00021917,2]
[329498340,1718397051331,-500.0,0.00021917,2]
[329498341,1718397051349,-500.0,0.00021917,2]
[329498342,1718397051375,-500.0,0.00021917,2]
[329498343,1718397051407,-506.99403627,0.00021917,2]
[329498344,1718397051418,-151.0,0.00021917,2]
[329498345,1718397051436,-515.28063906,0.00021917,2]
[329498346,1718397051448,-500.0,0.00021917,2]
[329498347,1718397051458,-269.326162,0.00021917,2]
[329498348,1718397051470,-502.22240359,0.00021917,2]
[329498349,1718397051486,-500.0,0.00021917,2]
[329498350,1718397051499,-500.0,0.00021917,2]
[329498351,1718397051510,-500.0,0.00021917,2]
[329498352,1718397051523,-500.0,0.00021917,2]
[329498353,1718397051533,-500.0,0.00021917,2]
[329498354,1718397051549,-500.0,0.00021917,2]
[329498355,1718397051577,-500.0,0.00021917,2]
[329498356,1718397051592,-500.0,0.00021917,2]
[329498357,1718397051602,-500.0,0.00021917,2]
[329498358,1718397051623,-500.0,0.00021917,2]
[329498359,1718397051635,-500.0,0.00021917,2]
[329498360,1718397051648,-156.20083445,0.00021917,2]
[329498361,1718397051659,-500.0,0.00021917,2]
[329498362,1718397051669,-506.83951061,0.00021917,2]
[329498363,1718397051679,-583.44,0.00021917,2]
[329498364,1718397051693,-500.0,0.00021917,2]
[329498365,1718397051709,-500.0,0.00021917,2]
[329498366,1718397051720,-512.8,0.00021917,2]
[329498367,1718397051737,-507.43065217,0.00021917,2]
[329498368,1718397051751,-500.0,0.00021917,2]
[329498369,1718397051767,-500.0,0.00021917,2]
[329498370,1718397051804,-500.0,0.00021917,2]
[329498371,1718397051831,-500.0,0.00021917,2]
[329498372,1718397051852,-500.0,0.00021917,2]
[329498373,1718397051882,-500.0,0.00021917,2]
[329498374,1718397051894,-506.22839847,0.00021917,2]
[329498375,1718397051907,-500.0,0.00021917,2]
[329498376,1718397051922,-500.0,0.00021917,2]
[329498377,1718397051946,-768.57,0.00021917,2]
[329498378,1718397051975,-500.0,0.00021917,2]
[329498379,1718397051986,-500.0,0.00021917,2]
[329498380,1718397052005,-500.0,0.00021917,2]
[329498381,1718397052019,-500.0,0.00021917,2]
[329498382,1718397052037,-500.0,0.00021917,2]
[329498383,1718397052063,-500.0,0.00021917,2]
[329498384,1718397052073,-500.0,0.00021917,2]
[329498385,1718397052098,-500.0,0.00021917,2]
[329498386,1718397052108,-500.0,0.00021917,2]
[329498387,1718397052172,-500.0,0.00021917,2]
[329498388,1718397052196,-432.898704,0.00021917,2]
[329498389,1718397052208,-500.0,0.00021917,2]
[329498390,1718397052223,-500.19,0.00021917,2]
[329498391,1718397052234,-510.3,0.00021917,2]
[329498392,1718397052247,-500.0,0.00021917,2]
[329498393,1718397052265,-500.0,0.00021917,2]
[329498394,1718397052276,-500.0,0.00021917,2]
[329498395,1718397052287,-500.0,0.00021917,2]
[329498396,1718397052320,-566.0,0.00021917,2]
[329498397,1718397052344,-500.0,0.00021917,2]
[329498398,1718397052355,-500.0,0.00021917,2]
[329498399,1718397052367,-500.0,0.00021917,2]
[329498400,1718397052387,-570.74,0.00021917,2]
[329498401,1718397052405,-500.0,0.00021917,2]
[329498402,1718397052417,-500.0,0.00021917,2]
[329498403,1718397052434,-500.0,0.00021917,2]
[329498404,1718397052462,-500.0,0.00021917,2]
[329498405,1718397052473,-500.0,0.00021917,2]
[329498406,1718397052496,-500.0,0.00021917,2]
[329498407,1718397052528,-500.0,0.00021917,2]
[329498408,1718397052544,-500.0,0.00021917,2]
[329498409,1718397052557,-500.0,0.00021917,2]
[329498410,1718397052573,-500.0,0.00021917,2]
[329498411,1718397052583,-500.0,0.00021917,2]
[329498412,1718397052598,-455.0,0.00021917,2]
[329498413,1718397052611,-500.0,0.00021917,2]
[329498414,1718397052636,-500.0,0.00021917,2]
[329498415,1718397052661,-500.0,0.00021917,2]
[329498416,1718397052688,-500.0,0.00021917,2]
[329498417,1718397052699,-523.07756664,0.00021917,2]
[329498418,1718397052746,-500.0,0.00021917,2]
[329498419,1718397052766,-500.0,0.00021917,2]
[329498420,1718397052798,-500.0,0.00021917,2]
[329498421,1718397052813,-500.0,0.00021917,2]
[329498422,1718397052828,-500.0,0.00021917,2]
[329498423,1718397052844,-500.0,0.00021917,2]
[329498424,1718397052865,-500.0,0.00021917,2]
[329498425,1718397052880,-500.0,0.00021917,2]
[329498426,1718397052899,-500.0,0.00021917,2]
[329498427,1718397052918,-500.0,0.00021917,2]
[329498428,1718397052934,-500.0,0.00021917,2]
[329498429,1718397052954,-500.0,0.00021917,2]
[329498430,1718397052967,-500.0,0.00021917,2]
[329498431,1718397052985,-500.0,0.00021917,2]
[329498432,1718397052999,-500.0,0.00021917,2]
[329498433,1718397053021,-500.0,0.00021917,2]
[329498434,1718397053032,-500.0,0.00021917,2]
[329498435,1718397053048,-500.0,0.00021917,2]
[329498436,1718397053096,-500.0,0.00021917,2]
[329498437,1718397053108,-500.0,0.00021917,2]
[329498438,1718397053128,-500.0,0.00021917,2]
[329498439,1718397053139,-500.0,0.00021917,2]
[329498440,1718397053150,-212.48334683,0.00021917,2]
[329498441,1718397053161,-504.43193877,0.00021917,2]
[329498442,1718397053173,-508.54265434,0.00021917,2]
[329498443,1718397053192,-502.69,0.00021917,2]
[329498444,1718397053215,-500.0,0.00021917,2]
[329498445,1718397053242,-501.61505447,0.00021917,2]
[329498446,1718397053259,-470.51033262,0.00021917,2]
[329498447,1718397053373,-33.4763597,0.00021917,2]
[329498448,1718397053387,-503.88532512,0.00021917,2]
[329498449,1718397053404,-502.45427673,0.00021917,2]
[329498450,1718397053415,-502.98246181,0.00021917,2]
[329498451,1718397053430,-500.0,0.00021917,2]
[329498452,1718397053441,-510.16145727,0.00021917,2]
[329498453,1718397053454,-439.05852097,0.00021917,2]
[329498454,1718397053468,-60.94147903,0.00021917,2]
[329498455,1718397053483,-500.0,0.00021917,2]
[329498456,1718397053505,-245.16852137,0.00021917,2]
[329498457,1718397053519,-263.76840062,0.00021917,2]
[329498458,1718397053529,-501.00910941,0.00021917,2]
[329498459,1718397053540,-134.80509574,0.00021917,2]
[329498460,1718397053553,-392.9641251,0.00021917,2]
[329498461,1718397053564,-495.53587493,0.00021917,2]
[329498462,1718397053577,-15.97476502,0.00021917,2]
[329498463,1718397053591,-510.24868075,0.00021917,2]
[329498464,1718397053613,-485.37471519,0.00021917,2]
[329498465,1718397053643,-14.62528481,0.00021917,2]
[329498466,1718397053657,-501.25705389,0.00021917,2]
[329498467,1718397053684,-505.26484466,0.00021917,2]
[329498468,1718397053712,-500.8293866,0.00021917,2]
[329498469,1718397053753,-307.27773087,0.00021917,2]
[329498470,1718397053767,-505.27490005,0.00021917,2]
[329498471,1718397053802,-489.90692168,0.00021917,2]
[329498472,1718397053839,-11.66016762,0.00021917,2]
[329498473,1718397053869,-461.79554571,0.00021917,2]
[329498474,1718397053882,-38.20445429,0.00021917,2]
[329498475,1718397053910,-316.91054601,0.00021917,2]
[329498476,1718397053929,-183.08945399,0.00021917,2]
[329498477,1718397053940,-318.89220692,0.00021917,2]
[329498478,1718397053954,-181.10779308,0.00021917,2]
[329498479,1718397053965,-500.0,0.00021917,2]
[329498480,1718397053985,-500.0,0.00021917,2]
[329498481,1718397054008,-501.91295062,0.00021917,2]
[329498482,1718397054048,-500.0,0.00021917,2]
[329498483,1718397054064,-500.0,0.00021917,2]
[329498484,1718397054079,-500.0,0.00021917,2]
[329498485,1718397054109,-512.53540374,0.00021917,2]
[329498486,1718397054137,-500.0,0.00021917,2]
[329498487,1718397054148,-501.61,0.00021917,2]
[329498488,1718397054184,-502.54508109,0.00021917,2]
[329498489,1718397054196,-548.43,0.00021917,2]
[329498490,1718397054224,-500.0,0.00021917,2]
[329498491,1718397054238,-2137.39,0.00021917,2]
[329498492,1718397054254,-500.0,0.00021917,2]
[329498493,1718397054267,-500.0,0.00021917,2]
[329498494,1718397054323,-500.0,0.00021917,2]
[329498495,1718397054337,-7992.18,0.00021917,2]
[329498496,1718397054353,-500.0,0.00021917,2]
[329498497,1718397054364,-500.0,0.00021917,2]
[329498498,1718397054392,-5689.15066841,0.00021917,2]
[329498499,1718397054409,-1013.27421864,0.00021917,2]
[329498500,1718397054552,-1377.3667903,0.00021917,2]
[329498501,1718397054573,-397.66172814,0.00021917,2]
[329498502,1718397054591,-2495.58714316,0.00021917,2]
[329498503,1718397054609,-987.22897559,0.00021917,2]
[329498504,1718397054627,-1961.55035764,0.00021917,2]
[329498505,1718397054646,-3042.08011812,0.00021917,2]
[329498506,1718397054668,-500.0,0.00021917,2]
[329498507,1718397054684,-500.0,0.00021917,2]
[329498508,1718397054696,-1175.54,0.00021917,2]
[329498509,1718397054720,-816.74,0.00021917,2]
[329498510,1718397054737,-220.13060817,0.00021917,2]
[329498511,1718397054865,-1286.20395336,0.00021917,2]
[329498512,1718397054912,-4934.58543847,0.00021917,2]
[329498513,1718397054968,-731.08,0.00021917,2]
[329498514,1718397054988,-500.0,0.00021917,2]
[329498515,1718397054999,-500.0,0.00021917,2]
[329498516,1718397055011,-504.27068464,0.00021917,2]
[329498517,1718397055022,-583.56,0.00021917,2]
[329498518,1718397055045,-500.0,0.00021917,2]
[329498519,1718397055056,-500.0,0.00021917,2]
[329498520,1718397055094,-500.0,0.00021917,2]
[329498521,1718397055107,-1683.35,0.00021917,2]
[329498522,1718397055140,-500.0,0.00021917,2]
[329498523,1718397055158,-500.0,0.00021917,2]
[329498524,1718397055192,-1053.44,0.00021917,2]
[329498525,1718397055211,-932.54,0.00021917,2]
[329498526,1718397055232,-503.157356,0.00021917,2]
[329498527,1718397055263,-500.0,0.00021917,2]
[329498528,1718397055285,-584.27,0.00021917,2]
[329498529,1718397055316,-4274.99,0.00021917,2]
[329498530,1718397055343,-500.0,0.00021917,2]
[329498531,1718397055355,-3276.61,0.00021917,2]
[329498532,1718397055369,-514.13789842,0.00021917,2]
[329498533,1718397055408,-500.0,0.00021917,2]
[329498534,1718397055427,-500.0,0.00021917,2]
[329498535,1718397055442,-2227.39,0.00021917,2]
[329498536,1718397055465,-500.0,0.00021917,2]
[329498537,1718397055482,-500.0,0.00021917,2]
[329498538,1718397055498,-707.96,0.00021917,2]
[329498539,1718397055511,-519.3805431,0.00021917,2]
[329498540,1718397055528,-1611.91,0.00021917,2]
[329498541,1718397055558,-500.0,0.00021917,2]
[329498542,1718397055571,-502.08092682,0.00021917,2]
[329498543,1718397055596,-500.0,0.00021917,2]
[329498544,1718397055607,-519.43075019,0.00021917,2]
[329498545,1718397055621,-500.0,0.00021917,2]
[329498546,1718397055635,-500.0,0.00021917,2]
[329498547,1718397055680,-500.0,0.00021917,2]
[329498548,1718397055691,-512.00820687,0.00021917,2]
[329498549,1718397055705,-513.61528368,0.00021917,2]
[329498550,1718397055716,-1400.43,0.00021917,2]
[329498551,1718397055726,-101.12091181,0.00021917,2]
[329498552,1718397055992,-398.87908819,0.00021917,2]
[329498553,1718397056003,-1103.93,0.00021917,2]
[329498554,1718397056015,-5259.15613264,0.00021917,2]
[329498555,1718397056071,-1382.07860804,0.00021917,2]
[329498556,1718397056424,-18068.55525932,0.00021917,2]
[329498557,1718397056455,-500.0,0.00021917,2]
[329498558,1718397056467,-500.0,0.00021917,2]
[329498559,1718397056509,-500.0,0.00021917,2]
[329498560,1718397056529,-1334.33,0.00021917,2]
[329498561,1718397056565,-500.0,0.00021917,2]
[329498562,1718397056577,-508.26988629,0.00021917,2]
[329498563,1718397056588,-500.0,0.00021917,2]
[329498564,1718397056610,-507.50643209,0.00021917,2]
[329498565,1718397056626,-500.0,0.00021917,2]
[329498566,1718397056649,-519.36911884,0.00021917,2]
[329498567,1718397056673,-500.0,0.00021917,2]
[329498568,1718397056684,-10816.1738445,0.00021917,2]
[329498575,1718397224828,1300732.0,0.00014,2]
[329498576,1718397224901,36000.0,0.00014,2]
[329498577,1718397225013,45300.0,0.00014,2]
[329498578,1718397336196,266.89669204,0.00015,14]
[329498580,1718397627214,151.0,0.00023835,120]
[329498583,1718397655665,157.061505,0.00028,90]
[329498584,1718397657714,157.061505,0.00028,90]
[329498585,1718397658210,157.061505,0.00028,90]
[329498586,1718397658603,157.061505,0.00028,90]
[329498587,1718397659157,157.061505,0.00028,90]
[329498588,1718397659722,157.061505,0.00028,90]
[329498589,1718397660124,157.061505,0.00028,90]
[329498590,1718397660471,157.061505,0.00028,90]
[329498591,1718397660959,157.061505,0.00028,90]
[329498592,1718397661514,157.061505,0.00028,90]
[329498593,1718397662400,157.061505,0.00028,90]
[329498594,1718397662763,157.061505,0.00028,90]
[329498595,1718397663483,157.061505,0.00028,90]
[329498596,1718397663812,157.061505,0.00028,90]
[329498597,1718397664467,157.061505,0.00028,90]
[329498598,1718397664858,157.061505,0.00028,90]
[329498599,1718397665240,157.061505,0.00028,90]
[329498600,1718397665678,157.061505,0.00028,90]
[329498601,1718397666117,157.061505,0.00028,90]
[329498602,1718397666409,157.061505,0.00028,90]
[329498603,1718397666895,157.061505,0.00028,90]
[329498604,1718397667083,157.061505,0.00028,90]
[329498605,1718397667425,157.061505,0.00028,90]
[329498606,1718397667815,157.061505,0.00028,90]
[329498607,1718397667922,157.061505,0.00028,90]
[329498608,1718397668297,157.061505,0.00028,90]
[329498609,1718397668512,157.061505,0.00028,90]
[329498610,1718397668987,157.061505,0.00028,90]
[329498611,1718397669404,157.061505,0.00028,90]
[329498612,1718397669566,157.061505,0.00028,90]
[329498613,1718397670213,157.061505,0.00028,90]
[329498614,1718397670857,157.061505,0.00028,90]
[329498615,1718397671169,157.061505,0.00028,90]
[329498616,1718397671541,157.061505,0.00028,90]
[329498617,1718397671860,157.061505,0.00028,90]
[329498618,1718397672253,157.061505,0.00028,90]
[329498619,1718397672629,157.061505,0.00028,90]
[329498620,1718397672818,157.061505,0.00028,90]
[329498621,1718397673182,157.061505,0.00028,90]
[329498622,1718397673998,157.061505,0.00028,90]
[329498623,1718397674466,157.061505,0.00028,90]
[329498624,1718397674665,157.061505,0.00028,90]
[329498625,1718397676108,157.061505,0.00028,90]
[329498626,1718397676276,157.061505,0.00028,90]
[329498627,1718397676783,157.061505,0.00028,90]
[329498628,1718397677207,157.061505,0.00028,90]
[329498629,1718397677518,157.061505,0.00028,90]
[329498630,1718397677912,157.061505,0.00028,90]
[329498631,1718397678298,157.061505,0.00028,90]
[329498632,1718397678700,157.061505,0.00028,90]
[329498633,1718397679049,157.061505,0.00028,90]
[329498634,1718397679630,157.061505,0.00028,90]
[329498635,1718397679948,157.061505,0.00028,90]
[329498636,1718397680293,157.061505,0.00028,90]
[329498637,1718397680657,157.061505,0.00028,90]
[329498638,1718397682515,157.061505,0.00028,90]
[329498639,1718397683437,157.061505,0.00028,90]
[329498640,1718397683671,157.061505,0.00028,90]
[329498641,1718397683818,157.061505,0.00028,90]
[329498642,1718397683981,157.061505,0.00028,90]
[329498643,1718397684296,157.061505,0.00028,90]
[329498644,1718397685366,157.061505,0.00028,90]
[329498645,1718397686189,157.061505,0.00028,90]
[329498646,1718397686417,157.061505,0.00028,90]
[329498647,1718397686552,157.061505,0.00028,90]
[329498648,1718397686672,157.061505,0.00028,90]
[329498649,1718397687047,157.061505,0.00028,90]
[329498650,1718397687349,157.061505,0.00028,90]
[329498651,1718397687705,157.061505,0.00028,90]
[329498652,1718397688073,157.061505,0.00028,90]
[329498653,1718397688377,157.061505,0.00028,90]
[329498654,1718397688733,157.061505,0.00028,90]
[329498655,1718397689196,157.061505,0.00028,90]
[329498656,1718397689511,157.061505,0.00028,90]
[329498657,1718397689787,157.061505,0.00028,90]
[329498658,1718397690134,157.061505,0.00028,90]
[329498659,1718397690562,157.061505,0.00028,90]
[329498660,1718397690941,157.061505,0.00028,90]
[329498661,1718397691915,157.061505,0.00028,90]
[329498662,1718397692313,157.061505,0.00028,90]
[329498663,1718397692779,157.061505,0.00028,90]
[329498664,1718397693189,157.061505,0.00028,90]
[329498665,1718397693618,157.061505,0.00028,90]
[329498666,1718397693968,157.061505,0.00028,90]
[329498667,1718397694610,157.061505,0.00028,90]
[329498668,1718397694893,157.061505,0.00028,90]
[329498669,1718397695241,157.061505,0.00028,90]
[329498670,1718397695570,157.061505,0.00028,90]
[329498671,1718397695939,157.061505,0.00028,90]
[329498672,1718397696521,157.061505,0.00028,90]
[329498673,1718397696668,157.061505,0.00028,90]
[329498674,1718397696934,157.061505,0.00028,90]
[329498675,1718397697579,157.061505,0.00028,90]
[329498676,1718397697947,157.061505,0.00028,90]
[329498677,1718397698271,157.061505,0.00028,90]
[329498678,1718397698623,157.061505,0.00028,90]
[329498679,1718397698946,157.061505,0.00028,90]
[329498680,1718397699261,157.061505,0.00028,90]
[329498681,1718397699576,157.061505,0.00028,90]
[329498682,1718397700155,157.061505,0.00028,90]
[329498683,1718397700527,157.061505,0.00028,90]
[329498684,1718397700866,157.061505,0.00028,90]
[329498685,1718397701194,157.061505,0.00028,90]
[329498686,1718397701493,157.061505,0.00028,90]
[329498687,1718397701902,157.061505,0.00028,90]
[329498688,1718397702166,157.061505,0.00028,90]
[329498689,1718397702519,157.061505,0.00028,90]
[329498690,1718397702834,157.061505,0.00028,90]
[329498691,1718397703435,157.061505,0.00028,90]
[329498692,1718397703686,157.061505,0.00028,90]
[329498693,1718397704335,157.061505,0.00028,90]
[329498694,1718397704649,157.061505,0.00028,90]
[329498695,1718397705216,157.061505,0.00028,90]
[329498696,1718397705357,157.061505,0.00028,90]
[329498697,1718397705618,157.061505,0.00028,90]
[329498698,1718397706043,157.061505,0.00028,90]
[329498699,1718397706618,157.061505,0.00028,90]
[329498700,1718397706758,157.061505,0.00028,90]